bitfinex/quotes_ETHUSD_20241030
["timestamp","ask_amount","ask_price","bid_price","bid_amount"]
[1730309115916,3.72499,2684.6,2684.5,0.05357744]
[1730309116079,3.72512,2684.5,2684.2,0.8167]
[1730309116528,3.72512,2684.5,2684.2,2.41641722]
[1730309116822,3.72499,2684.6,2684.2,6.14183722]
[1730309116981,21.92474,2684.8,2684.4,1.59971722]
[1730309117318,3.72483,2684.7,2684.5,0.8302]
[1730309119507,3.72483,2684.7,2684.3,3.72533]
[1730309119508,3.72494,2684.6,2684.1,0.8302]
[1730309120023,3.72512,2684.5,2684.1,4.55581]
[1730309120331,3.72504,2684.6,2684.2,3.72549]
[1730309120518,18.2,2684.8,2684.4,0.8154]
[1730309120687,4.50832,2685.4,2684.9,4.53982]
[1730309120881,3.724,2685.3,2684.9,0.88988227]
[1730309121207,3.724,2685.3,2684.9,0.8154]
[1730309121911,3.724,2685.3,2684.9,4.5399]
[1730309122825,3.724,2685.3,2684.9,0.8154]
[1730309124520,3.724,2685.3,2684.9,4.53991]
[1730309124824,3.724,2685.3,2684.9,0.8154]
[1730309126299,3.724,2685.3,2684.9,4.53991]
[1730309126901,7.44805,2685.3,2684.9,0.8154]
[1730309127215,3.724,2685.3,2684.9,0.8154]
[1730309127792,3.724,2685.3,2685.0,0.05305715]
[1730309128934,3.72379,2685.5,2685.2,0.7664]
[1730309129228,3.7239,2685.4,2685.3,0.05279331]
[1730309130090,3.72433,2685.1,2684.7,1.139]
[1730309130290,4.55522,2685.2,2684.7,0.7664]
[1730309130491,3.72426,2685.1,2684.7,0.7664]
[1730309130719,3.72446,2685.0,2684.7,0.7664]
[1730309130934,3.72426,2685.1,2684.7,0.7664]
[1730309132417,3.72408,2685.3,2684.8,1.3164]
[1730309132737,7.44791,2685.4,2685.1,0.7664]
[1730309132919,3.72394,2685.4,2685.1,0.7664]
[1730309133597,3.72393,2685.4,2685.1,0.7664]
[1730309134728,3.72392,2685.4,2685.1,0.7664]
[1730309135536,3.7244,2685.0,2684.7,3.7664]
[1730309135707,0.8311,2685.3,2684.7,3.7664]
[1730309135708,3.72467,2684.8,2684.7,0.7664]
[1730309136052,3.72467,2684.8,2684.5,0.7664]
[1730309136340,3.72467,2684.8,2684.6,4.0]
[1730309136638,3.72448,2685.0,2684.6,4.0]
[1730309136815,3.72448,2685.0,2684.5,4.49141]
[1730309137337,7.44897,2685.0,2684.5,4.49141]
[1730309137645,3.72501,2684.6,2684.3,0.3726]
[1730309137807,3.72516,2684.5,2684.2,0.8281]
[1730309138005,3.72516,2684.5,2684.3,4.0]
[1730309138006,3.72525,2684.4,2684.3,4.0]
[1730309138500,3.72516,2684.5,2684.3,4.0]
[1730309138705,3.72516,2684.5,2684.2,0.8281]
[1730309141143,3.72533,2684.4,2684.2,0.8281]
[1730309141338,3.72533,2684.4,2684.1,0.3726]
[1730309141646,3.72533,2684.4,2684.0,6.72571]
[1730309142021,7.45002,2684.6,2684.1,3.72562]
[1730309142951,7.45002,2684.6,2684.2,0.05193292]
[1730309144015,3.72508,2684.5,2684.2,0.05193292]
[1730309144224,3.72508,2684.5,2683.9,4.1903]
[1730309144225,3.72524,2684.4,2683.9,4.91614]
[1730309144422,3.72524,2684.4,2684.0,0.0520797]
[1730309146215,3.72508,2684.5,2684.0,0.0520797]
[1730309146216,3.72537,2684.3,2684.0,0.0520797]
[1730309146414,3.72558,2684.2,2684.0,0.0520797]
[1730309146618,3.72511,2684.5,2684.1,0.8119]
[1730309146817,3.72524,2684.4,2684.2,0.05200183]
[1730309150463,3.7251,2684.5,2684.2,0.05200183]
[1730309151660,3.72455,2684.9,2684.2,0.05200183]
[1730309151661,3.72472,2684.8,2684.3,3.7253]
[1730309151869,3.72445,2685.0,2684.5,3.72495]
[1730309152172,3.72419,2685.2,2684.5,3.72495]
[1730309152173,3.72427,2685.1,2684.5,3.72495]
[1730309152461,4.096609,2685.2,2684.6,3.77661701]
[1730309152647,3.72426,2685.1,2684.6,3.77661701]
[1730309153052,4.47818,2685.3,2684.7,0.8233]
[1730309153238,0.7542,2685.3,2684.7,4.59964365]
[1730309153421,4.47818,2685.3,2684.7,4.59964365]
[1730309154328,8.20225,2685.3,2684.7,4.59964365]
[1730309155229,4.47818,2685.3,2684.8,3.72459]
[1730309155437,3.72398,2685.3,2684.9,0.05131914]
[1730309155841,3.72384,2685.4,2684.9,3.77575914]
[1730309156169,3.72352,2685.7,2685.1,3.72412]
[1730309156356,3.72362,2685.6,2685.1,3.72412]
[1730309156528,3.72362,2685.6,2685.2,0.05108973]
[1730309157063,3.72371,2685.5,2685.2,0.05108973]
[1730309157566,3.72385,2685.4,2685.2,0.05108973]
[1730309157931,3.72385,2685.4,2685.0,4.49458]
[1730309158131,3.72385,2685.4,2685.3,0.05098509]
[1730309158361,3.72357,2685.6,2685.0,4.49458]
[1730309158537,3.72371,2685.5,2685.3,0.05098509]
[1730309158946,3.72385,2685.4,2685.0,4.49458]
[1730309161534,3.72385,2685.4,2685.0,8.21891]
[1730309161731,3.72379,2685.5,2685.0,4.49453]
[1730309161948,3.72388,2685.4,2685.0,4.49453]
[1730309162147,3.72379,2685.5,2685.0,0.7702]
[1730309162344,3.72399,2685.3,2685.0,0.7702]
[1730309162736,3.72405,2685.3,2684.8,4.52525]
[1730309163074,3.72405,2685.3,2684.8,0.8006]
[1730309163075,3.72419,2685.2,2684.8,0.8006]
[1730309163777,0.7783,2685.1,2684.6,0.8156]
[1730309164073,3.7246,2684.9,2684.6,0.8156]
[1730309164275,3.72468,2684.8,2684.6,0.8156]
[1730309164577,3.72455,2684.9,2684.6,0.8156]
[1730309164949,7.44916,2684.9,2684.6,0.8156]
[1730309165376,3.72455,2684.9,2684.6,0.8156]
[1730309165884,3.72474,2684.8,2684.6,0.8156]
[1730309167158,3.72454,2684.9,2684.6,0.8156]
[1730309167647,3.72453,2684.9,2684.6,0.8156]
[1730309167851,3.72453,2684.9,2684.4,0.7893]
[1730309167852,7.4497,2684.7,2684.4,0.7893]
[1730309168149,3.72481,2684.7,2684.4,0.7893]
[1730309168791,3.72501,2684.6,2684.2,0.8004]
[1730309169078,3.72529,2684.4,2684.2,0.8004]
[1730309169646,3.72521,2684.5,2684.2,0.8004]
[1730309170384,3.72525,2684.4,2684.2,0.8004]
[1730309170884,3.72491,2684.7,2684.2,4.52589]
[1730309171888,3.72491,2684.7,2684.2,4.52582]
[1730309172259,7.44982,2684.7,2684.2,4.52582]
[1730309172676,7.44982,2684.7,2684.3,0.04828801]
[1730309172877,7.44982,2684.7,2684.2,4.52582]
[1730309173072,7.44982,2684.7,2684.4,0.04821464]
[1730309173276,7.44982,2684.7,2684.2,4.52582]
[1730309173465,3.72491,2684.7,2684.5,0.04814126]
[1730309173683,3.72491,2684.7,2684.2,4.52582]
[1730309173986,3.72497,2684.6,2684.2,4.52582]
[1730309174487,3.72497,2684.6,2684.2,0.8004]
[1730309174989,3.72497,2684.6,2684.2,4.52589]
[1730309175987,3.72497,2684.6,2684.2,0.8004]
[1730309177506,0.7808,2684.9,2684.2,0.8004]
[1730309177815,0.7808,2684.9,2684.0,3.72573]
[1730309177816,3.72578,2684.0,2683.9,0.38916783]
[1730309178160,3.72621,2683.7,2683.4,0.7926]
[1730309178496,3.72578,2684.0,2683.4,0.7926]
[1730309178663,3.72594,2683.9,2683.4,4.51913]
[1730309179059,3.72592,2683.9,2683.4,0.7926]
[1730309179698,3.72607,2683.8,2683.4,0.7926]
[1730309179997,7.45166,2684.0,2683.4,4.51911]
[1730309180354,3.72578,2684.0,2683.4,4.51911]
[1730309180970,7.45168,2684.0,2683.4,4.51911]
[1730309181171,3.72592,2683.9,2683.4,4.51911]
[1730309181464,0.7901,2684.1,2683.3,3.72664]
[1730309181465,0.7901,2684.5,2683.7,0.7926]
[1730309181666,3.72517,2684.5,2683.9,0.7926]
[1730309181894,0.7901,2684.7,2684.2,0.7926]
[1730309181895,3.72505,2684.6,2684.2,0.7926]
[1730309182096,3.72516,2684.5,2684.2,0.7926]
[1730309182866,3.72523,2684.4,2684.2,0.7926]
[1730309184092,3.72536,2684.3,2684.2,0.7926]
[1730309184393,3.72518,2684.5,2684.2,0.7926]
[1730309184595,3.72525,2684.4,2684.2,0.7926]
[1730309186507,4.95141385,2684.7,2684.2,0.7926]
[1730309186800,3.72496,2684.6,2684.2,0.7926]
[1730309187405,3.72496,2684.6,2684.2,4.51808]
[1730309187609,3.72474,2684.8,2684.4,0.7986]
[1730309188002,3.72474,2684.8,2684.5,0.04353757]
[1730309188210,3.72494,2684.6,2684.5,0.04353757]
[1730309190381,3.72487,2684.7,2684.5,0.04353757]
[1730309190790,7.44979,2684.7,2684.5,0.04353757]
[1730309191021,3.72494,2684.6,2684.5,0.04353757]
[1730309194384,3.72518,2684.5,2684.2,0.763]
[1730309194803,3.72494,2684.6,2684.2,0.763]
[1730309195007,3.72481,2684.7,2684.2,4.48843]
[1730309195984,3.72495,2684.6,2684.2,0.763]
[1730309196432,3.72516,2684.5,2684.2,0.763]
[1730309196917,0.781,2685.0,2684.2,0.763]
[1730309197084,3.72488,2684.7,2684.2,4.48848]
[1730309197283,7.4498,2684.7,2684.2,4.48848]
[1730309197521,3.72497,2684.6,2684.2,4.48848]
[1730309198609,3.72497,2684.6,2684.2,0.763]
[1730309199394,3.72453,2684.9,2684.2,0.763]
[1730309199719,3.72495,2684.6,2684.2,0.763]
[1730309200016,3.72496,2684.6,2684.2,0.763]
[1730309201408,0.8018,2684.8,2684.2,0.763]
[1730309201595,3.72529,2684.4,2684.2,0.763]
[1730309202605,3.72529,2684.4,2683.9,8.32577863]
[1730309202835,7.45061,2684.4,2684.0,0.8189]
[1730309203205,3.72529,2684.4,2684.1,0.04379662]
[1730309204725,3.72548,2684.3,2684.1,0.04379662]
[1730309206055,3.72528,2684.4,2684.1,0.04379662]
[1730309209456,3.72537,2684.3,2684.1,0.04379662]
[1730309209952,3.7255,2684.2,2684.1,0.04379662]
[1730309210357,3.72537,2684.3,2683.9,3.72589]
[1730309210565,3.72537,2684.3,2684.1,0.04382795]
[1730309210752,3.72537,2684.3,2684.0,0.83911387]
[1730309210920,3.72537,2684.3,2684.2,0.04376709]
[1730309211121,3.72537,2684.3,2684.1,0.04384048]
[1730309211455,3.72537,2684.3,2684.2,0.04376709]
[1730309211833,3.72537,2684.3,2684.0,0.7952]
[1730309212054,3.72537,2684.3,2684.2,0.04379843]
[1730309212242,3.72537,2684.3,2684.1,0.04387182]
[1730309212562,3.72537,2684.3,2684.2,0.04379843]
[1730309212919,3.72537,2684.3,2684.0,0.7952]
[1730309213122,3.72537,2684.3,2684.2,0.04379843]
[1730309213334,3.72537,2684.3,2684.1,0.04387182]
[1730309213537,3.72537,2684.3,2684.2,0.04379843]
[1730309214032,3.72537,2684.3,2684.0,0.7952]
[1730309214251,3.72552,2684.2,2684.0,0.7952]
[1730309215257,3.72537,2684.3,2684.0,0.7952]
[1730309215561,3.72553,2684.2,2684.0,0.7952]
[1730309215939,3.72537,2684.3,2684.0,0.7952]
[1730309217752,3.72537,2684.3,2684.1,0.04387182]
[1730309219571,0.7823,2684.5,2684.1,0.04387182]
[1730309219877,3.72545,2684.3,2684.1,0.04387182]
[1730309221872,3.7255,2684.2,2684.1,0.04387182]
[1730309223651,3.72537,2684.3,2684.1,0.04387182]
[1730309227245,7.45082,2684.3,2684.1,0.04387182]
[1730309227453,3.72537,2684.3,2684.1,0.04387182]
[1730309227875,7.45081,2684.3,2684.1,0.04387182]
[1730309228074,3.72537,2684.3,2684.1,0.04387182]
[1730309228284,7.45081,2684.3,2684.1,0.04387182]
[1730309229174,3.72537,2684.3,2684.1,0.04387182]
[1730309229365,7.45082,2684.3,2684.1,0.04387182]
[1730309229882,3.72537,2684.3,2684.1,0.04387182]
[1730309232586,3.72543,2684.3,2684.1,0.04387182]
[1730309233951,3.7255,2684.2,2684.1,0.04387182]
[1730309236780,3.72538,2684.3,2684.1,0.04387182]
[1730309237280,3.72485,2684.7,2684.3,3.72534]
[1730309237484,3.72485,2684.7,2684.4,0.7719]
[1730309237647,3.7248,2684.8,2684.4,4.5407836]
[1730309237648,3.7247,2684.8,2684.4,4.5407836]
[1730309237850,3.7247,2684.8,2684.4,6.14071223]
[1730309238780,7.44947,2684.8,2684.4,2.41550223]
[1730309239085,3.725,2684.6,2684.4,0.8155736]
[1730309239295,3.725,2684.6,2684.4,0.0436736]
[1730309239296,3.72508,2684.5,2684.4,0.0436736]
[1730309239591,3.72543,2684.3,2684.0,0.7719]
[1730309240387,3.72551,2684.2,2684.0,0.7719]
[1730309243057,3.72538,2684.3,2684.0,0.7719]
[1730309243689,3.72514,2684.5,2684.0,4.49767]
[1730309244056,7.45034,2684.5,2684.0,4.49767]
[1730309244256,3.72525,2684.4,2684.0,4.49767]
[1730309245562,0.8229,2684.6,2684.0,4.49767]
[1730309245790,3.72415,2685.2,2684.5,1.59992863]
[1730309246002,3.72437,2685.1,2684.7,0.8045]
[1730309246181,3.72437,2685.1,2684.7,0.725985]
[1730309246516,3.72405,2685.3,2684.9,3.72451]
[1730309247869,3.72405,2685.3,2685.0,0.04175528]
[1730309248255,3.72405,2685.3,2684.9,3.72451]
[1730309248458,3.72405,2685.3,2685.0,0.04175528]
[1730309248853,3.72385,2685.4,2685.0,0.04175528]
[1730309249357,3.72399,2685.3,2685.1,0.8013]
[1730309249768,3.72399,2685.3,2685.2,0.04160861]
[1730309250382,3.72379,2685.5,2685.2,0.04160861]
[1730309250695,3.72385,2685.4,2685.2,0.04160861]
[1730309252879,3.72397,2685.3,2685.2,0.04160861]
[1730309253404,3.72386,2685.4,2685.2,0.04160861]
[1730309254067,3.72397,2685.3,2685.2,0.04160861]
[1730309258407,3.72385,2685.4,2685.2,0.04160861]
[1730309259147,3.72373,2685.5,2685.2,0.04160861]
[1730309259361,3.7239,2685.4,2685.2,0.04160861]
[1730309259507,3.72397,2685.3,2685.2,0.04160861]
[1730309260439,3.72397,2685.3,2684.9,0.7742]
[1730309260931,3.72397,2685.3,2685.0,0.04153366]
[1730309262033,0.8086,2685.7,2685.0,3.76584366]
[1730309262340,3.72378,2685.5,2685.1,0.8185]
[1730309262508,3.72378,2685.5,2685.2,0.04138699]
[1730309263148,3.72344,2685.7,2685.2,0.04138699]
[1730309263349,3.72356,2685.6,2685.2,0.04138699]
[1730309263717,3.72344,2685.7,2685.3,0.7659]
[1730309263956,3.72357,2685.6,2685.4,0.04122318]
[1730309264251,3.72344,2685.7,2685.4,0.04122318]
[1730309264554,3.72363,2685.6,2685.4,0.04122318]
[1730309264762,3.72344,2685.7,2685.4,0.04122318]
[1730309265555,3.72326,2685.9,2685.4,3.83946766]
[1730309265730,3.72326,2685.9,2685.5,0.8299]
[1730309265928,3.72326,2685.9,2685.6,0.04107655]
[1730309266453,7.44652,2685.9,2685.6,0.04107655]
[1730309266947,3.72296,2686.1,2685.6,0.04107655]
[1730309267149,3.72301,2686.0,2685.6,0.04107655]
[1730309267353,3.72301,2686.0,2685.6,3.76462655]
[1730309268513,3.72301,2686.0,2685.6,0.04107655]
[1730309268956,3.7232,2685.9,2685.6,0.04107655]
[1730309269131,3.72301,2686.0,2685.6,0.04107655]
[1730309269336,3.72328,2685.8,2685.6,0.04107655]
[1730309269630,3.72316,2685.9,2685.6,0.04107655]
[1730309269831,7.44639,2685.9,2685.6,0.04107655]
[1730309270145,3.72335,2685.8,2685.6,0.04107655]
[1730309270664,1.5981663,2686.1,2685.6,0.04107655]
[1730309270665,3.72342,2685.7,2685.6,0.04107655]
[1730309270842,4.55332,2685.7,2685.6,0.04107655]
[1730309271017,6.1514863,2685.7,2685.6,0.04107655]
[1730309271212,6.1514863,2685.7,2685.2,0.763]
[1730309271213,3.72393,2685.4,2685.2,0.763]
[1730309271457,7.44786,2685.4,2685.2,0.763]
[1730309271658,7.44786,2685.4,2685.0,3.0]
[1730309271659,3.72393,2685.4,2685.3,0.04120914]
[1730309271829,4.468716,2685.4,2685.3,0.04120914]
[1730309272028,3.7242,2685.2,2685.0,0.7931]
[1730309272359,3.7242,2685.2,2685.1,0.04135579]
[1730309272360,7.44844,2685.2,2685.1,0.04135579]
[1730309272717,8.2677626,2685.2,2685.1,0.04135579]
[1730309273022,3.72459,2684.9,2684.7,0.8294]
[1730309277719,3.72459,2684.9,2684.8,0.04161639]
[1730309277934,3.72459,2684.9,2684.7,0.8294]
[1730309278170,3.72459,2684.9,2684.8,0.04161639]
[1730309278672,3.72459,2684.9,2684.7,0.8294]
[1730309278875,3.72459,2684.9,2684.8,0.04105639]
[1730309279166,3.72473,2684.8,2684.5,0.38900788]
[1730309279379,3.72485,2684.7,2684.5,0.38900788]
[1730309279534,3.72485,2684.7,2684.0,0.7574]
[1730309279535,4.48194,2684.6,2684.0,0.7574]
[1730309279877,3.72556,2684.2,2684.0,0.7574]
[1730309280461,3.72538,2684.3,2684.0,0.7574]
[1730309281637,3.72564,2684.1,2684.0,0.7574]
[1730309281970,3.72564,2684.1,2683.7,0.38886847]
[1730309281971,3.72551,2684.2,2683.8,0.7574]
[1730309282158,3.72551,2684.2,2683.8,0.83191161]
[1730309282474,0.757,2684.6,2683.8,4.55796161]
[1730309282648,3.72542,2684.3,2683.8,4.55796161]
[1730309283672,3.72542,2684.3,2683.8,4.48345]
[1730309283973,3.72542,2684.3,2683.8,4.5579616]
[1730309284349,3.72542,2684.3,2683.8,4.48345]
[1730309284649,3.72542,2684.3,2683.8,4.55796161]
[1730309285083,3.7255,2684.2,2683.8,4.48345]
[1730309285738,3.72535,2684.4,2683.8,4.48345]
[1730309285954,3.72538,2684.3,2683.8,4.48345]
[1730309286153,4.48204,2684.6,2683.9,3.72591]
[1730309286382,3.72523,2684.4,2683.9,3.72591]
[1730309286674,3.72537,2684.3,2683.9,3.72591]
[1730309288444,3.72511,2684.5,2683.9,3.72582]
[1730309288740,3.72539,2684.3,2683.9,3.72582]
[1730309290468,3.72523,2684.4,2683.9,7.45163]
[1730309290666,3.72523,2684.4,2683.9,3.72581]
[1730309290873,3.72523,2684.4,2683.9,7.45166]
[1730309291071,3.72537,2684.3,2683.9,3.72581]
[1730309291647,3.72511,2684.5,2683.9,7.45165]
[1730309291951,3.72524,2684.4,2683.9,3.72581]
[1730309292149,3.72524,2684.4,2683.9,3.80032063]
[1730309292558,3.72537,2684.3,2683.9,3.72581]
[1730309292764,3.72537,2684.3,2684.0,0.03787304]
[1730309292970,3.72537,2684.3,2683.8,0.7574]
[1730309293285,3.72537,2684.3,2683.9,3.76385643]
[1730309293492,3.72537,2684.3,2683.9,0.03794643]
[1730309294192,3.72537,2684.3,2683.9,3.76384643]
[1730309295888,3.72524,2684.4,2684.0,3.72576]
[1730309296058,3.72524,2684.4,2683.9,3.76384643]
[1730309296261,3.72524,2684.4,2684.1,0.03779964]
[1730309296621,3.72537,2684.3,2684.2,0.03772626]
[1730309297089,3.72537,2684.3,2683.9,3.7259]
[1730309297276,3.72537,2684.3,2684.2,0.03772626]
[1730309297482,3.72537,2684.3,2683.9,3.7259]
[1730309297666,3.72537,2684.3,2684.2,0.03772626]
[1730309297866,3.72537,2684.3,2683.9,3.7259]
[1730309298067,3.72537,2684.3,2684.2,0.03772626]
[1730309298284,3.72584,2684.0,2683.8,0.7574]
[1730309298463,3.72578,2684.1,2683.8,0.7574]
[1730309299595,4.51102,2684.2,2683.8,0.7574]
[1730309300097,4.098007,2684.3,2683.8,4.48335]
[1730309300399,7.823477,2684.3,2683.8,4.48335]
[1730309301903,4.098007,2684.3,2683.8,4.48335]
[1730309302209,3.72552,2684.2,2683.8,4.48335]
[1730309305410,3.72537,2684.3,2683.9,3.7259]
[1730309305704,8.21046,2684.4,2683.9,3.7259]
[1730309306004,7.45056,2684.4,2683.9,3.7259]
[1730309306210,3.72524,2684.4,2683.9,3.7259]
[1730309306572,7.45057,2684.4,2683.9,3.7259]
[1730309306871,3.72524,2684.4,2683.9,3.7259]
[1730309307083,7.45055,2684.4,2683.9,3.7259]
[1730309307809,7.45055,2684.4,2684.0,0.03667366]
[1730309308014,4.13990042,2684.4,2684.0,0.03667366]
[1730309308221,3.72539,2684.3,2684.0,0.03667366]
[1730309311392,3.72525,2684.4,2684.0,3.76242366]
[1730309311717,3.72525,2684.4,2684.1,0.7649]
[1730309312213,3.72525,2684.4,2684.2,0.03653311]
[1730309313203,3.72536,2684.3,2684.2,0.03653311]
[1730309316491,3.7257,2684.1,2683.7,4.86953847]
[1730309316935,3.7257,2684.1,2683.8,0.03680803]
[1730309317229,3.42029771,2684.4,2683.7,1.14336847]
[1730309317424,3.72565,2684.1,2683.9,0.03673462]
[1730309317632,3.72565,2684.1,2683.7,4.86954847]
[1730309317854,3.72565,2684.1,2684.0,0.03666434]
[1730309318126,3.72565,2684.1,2683.7,4.86954847]
[1730309318334,3.72565,2684.1,2684.0,0.03666434]
[1730309318634,3.72565,2684.1,2684.0,0.03667679]
[1730309318936,3.72565,2684.1,2683.7,4.86954847]
[1730309319096,3.72553,2684.2,2684.0,0.03667679]
[1730309319297,3.72553,2684.2,2683.7,4.86944847]
[1730309319513,3.72553,2684.2,2684.1,0.03659095]
[1730309320034,3.72553,2684.2,2683.8,3.72604]
[1730309320208,3.72553,2684.2,2684.1,0.03659095]
[1730309320403,3.72553,2684.2,2683.8,3.72604]
[1730309320611,3.72525,2684.4,2684.1,0.03659095]
[1730309320811,3.72525,2684.4,2684.0,3.72577]
[1730309321015,3.72525,2684.4,2684.2,0.03651756]
[1730309321247,3.72525,2684.4,2684.1,0.03659095]
[1730309321530,3.72525,2684.4,2684.0,3.72577]
[1730309321736,3.72525,2684.4,2684.2,0.03651756]
[1730309322029,3.72525,2684.4,2684.3,0.03644418]
[1730309322395,3.72525,2684.4,2684.0,3.72577]
[1730309322594,3.72525,2684.4,2684.1,0.03659095]
[1730309322901,0.833,2684.6,2684.1,0.03659095]
[1730309323107,3.72489,2684.7,2684.2,4.59353375]
[1730309323304,3.72489,2684.7,2684.2,4.51903]
[1730309323504,3.72489,2684.7,2684.3,0.03643951]
[1730309323732,3.72485,2684.7,2684.3,0.03643951]
[1730309323939,3.72485,2684.7,2684.2,4.51903]
[1730309324139,3.72485,2684.7,2684.4,0.03636458]
[1730309324332,3.72485,2684.7,2684.3,0.03643795]
[1730309324536,3.72485,2684.7,2684.5,0.03629121]
[1730309324745,3.72485,2684.7,2684.4,0.03636458]
[1730309325042,3.72485,2684.7,2684.5,0.03628341]
[1730309325240,3.72494,2684.6,2684.2,4.51903]
[1730309325640,3.72536,2684.3,2684.2,0.7936]
[1730309325948,3.72536,2684.3,2684.0,0.8226]
[1730309326148,3.72523,2684.4,2684.0,0.8226]
[1730309326320,3.72564,2684.1,2683.8,0.8226]
[1730309326707,3.72564,2684.1,2683.6,0.38906535]
[1730309326708,3.72578,2684.0,2683.6,0.38906535]
[1730309327044,1.60020883,2683.7,2682.6,1.60020883]
[1730309327256,1.60020883,2683.7,2683.2,3.72686]
[1730309327257,3.72622,2683.7,2683.2,3.72686]
[1730309327548,9.05225883,2683.9,2683.3,3.72669]
[1730309327914,1.60020883,2683.9,2683.1,3.72693]
[1730309328251,3.72661,2683.4,2682.8,3.72736]
[1730309328435,5.32674883,2683.5,2682.9,3.72718]
[1730309328635,0.7905,2683.6,2683.2,3.72683]
[1730309328835,6.11826883,2683.8,2683.0,3.72707]
[1730309329038,3.72622,2683.7,2683.0,3.72703]
[1730309329240,3.72622,2683.7,2683.0,3.8015655]
[1730309329438,3.00403571,2683.8,2682.9,1.60020883]
[1730309329648,3.7264,2683.6,2683.0,0.55]
[1730309329840,3.00403571,2683.8,2683.0,1.3185]
[1730309330010,1.60020883,2683.4,2683.0,0.7685]
[1730309330357,3.72613,2683.8,2683.2,4.49535]
[1730309330512,3.72615,2683.8,2683.2,4.49535]
[1730309330713,3.72627,2683.7,2683.2,0.7685]
[1730309331049,3.72635,2683.6,2683.2,0.7685]
[1730309331258,5.32668883,2683.5,2682.9,8.22295]
[1730309331547,0.61182088,2683.9,2683.2,3.72687]
[1730309331548,4.51807,2683.8,2683.2,3.72687]
[1730309331705,4.51807,2683.8,2683.3,3.72669]
[1730309331904,0.792,2683.8,2683.4,4.5555]
[1730309332144,3.0,2684.3,2683.4,0.8289]
[1730309332358,4.53459,2684.2,2683.6,3.72627]
[1730309332651,3.72576,2684.1,2683.6,3.72627]
[1730309332855,4.5345,2684.2,2683.7,3.7261]
[1730309333228,3.72571,2684.1,2683.6,3.7263]
[1730309333545,3.72571,2684.1,2683.5,3.72639]
[1730309333546,4.53451,2684.2,2683.7,3.72613]
[1730309334211,3.72551,2684.2,2683.7,7.45226]
[1730309334363,3.72543,2684.3,2683.8,4.54867]
[1730309334748,4.90953592,2684.4,2683.9,3.7259]
[1730309334953,3.72527,2684.4,2683.9,3.7259]
[1730309335262,3.72511,2684.5,2683.8,0.89721656]
[1730309335447,3.72503,2684.6,2683.9,0.55]
[1730309335652,3.72487,2684.7,2684.3,0.7503]
[1730309337263,3.72501,2684.6,2684.3,0.7503]
[1730309337452,3.72512,2684.5,2684.1,4.51843]
[1730309337829,3.72512,2684.5,2684.2,0.05476418]
[1730309338039,3.72529,2684.4,2684.2,0.05476418]
[1730309338265,3.72529,2684.4,2683.9,4.27583]
[1730309338454,3.72529,2684.4,2684.3,0.05464188]
[1730309338636,3.72548,2684.3,2683.8,4.54661]
[1730309339049,3.72529,2684.4,2683.9,3.7259]
[1730309339339,3.72505,2684.6,2684.1,3.72557]
[1730309339547,3.72487,2684.7,2684.2,3.72543]
[1730309339746,3.72487,2684.7,2684.3,0.7565]
[1730309340069,4.53928,2684.8,2684.3,0.7565]
[1730309340235,3.72496,2684.6,2684.3,0.7565]
[1730309340438,3.72522,2684.4,2684.0,0.7565]
[1730309340964,4.53924,2684.8,2684.0,0.7565]
[1730309340965,0.8145,2684.8,2684.0,0.7565]
[1730309341167,4.47709,2685.0,2684.6,3.72494]
[1730309341478,3.72467,2684.8,2684.5,0.8329]
[1730309342464,3.72442,2685.0,2684.6,3.72492]
[1730309342783,3.72446,2685.0,2684.5,4.55798]
[1730309343635,7.44892,2685.0,2684.5,4.55798]
[1730309344437,3.72456,2684.9,2684.5,0.8329]
[1730309344661,3.72456,2684.9,2684.5,4.55797]
[1730309345577,3.72464,2684.9,2684.5,0.8329]
[1730309345789,3.72481,2684.7,2684.5,0.8329]
[1730309345969,3.72469,2684.8,2684.5,0.8329]
[1730309346286,3.72455,2684.9,2684.5,0.8329]
[1730309347085,3.7244,2685.0,2684.6,3.72491]
[1730309347250,3.72415,2685.2,2684.7,3.72474]
[1730309347455,7.44836,2685.2,2684.7,3.72474]
[1730309347951,3.72415,2685.2,2684.7,3.72474]
[1730309348279,3.72392,2685.4,2684.5,0.8329]
[1730309348444,3.72403,2685.3,2684.8,3.7246]
[1730309348643,3.72403,2685.3,2684.9,0.7994]
[1730309349587,3.72384,2685.4,2685.0,3.72438]
[1730309350048,3.72371,2685.5,2685.0,3.7243]
[1730309350480,3.72371,2685.5,2685.0,7.44863]
[1730309350680,4.53157892,2685.6,2685.1,3.72417]
[1730309350976,4.53157892,2685.6,2685.1,3.79864909]
[1730309350977,4.53155892,2685.6,2685.1,3.79864909]
[1730309351153,4.53155892,2685.6,2685.2,3.72408]
[1730309351483,3.72377,2685.5,2685.3,0.7994]
[1730309352986,3.72421,2685.2,2684.7,0.55]
[1730309353188,3.72421,2685.2,2684.7,5.09632]
[1730309353391,7.44844,2685.2,2684.7,5.09632]
[1730309353581,3.72421,2685.2,2684.7,5.09632]
[1730309354082,3.72432,2685.1,2684.7,1.3716]
[1730309355096,0.449811,2685.2,2684.5,0.793]
[1730309355295,3.72487,2684.7,2684.2,4.5185]
[1730309356387,3.72504,2684.6,2684.2,0.793]
[1730309356889,3.72467,2684.8,2684.2,0.793]
[1730309357066,3.72481,2684.7,2684.3,3.72534]
[1730309357465,7.44973,2684.7,2684.2,4.51849]
[1730309358057,3.72481,2684.7,2684.3,3.72527]
[1730309358487,7.4497,2684.7,2684.2,4.51849]
[1730309359600,3.72499,2684.6,2684.2,4.51849]
[1730309362204,3.72467,2684.8,2684.2,0.793]
[1730309362511,3.72454,2684.9,2684.4,3.72519]